bitfinex/quotes_BTCUSD_20250423
["timestamp","ask_amount","ask_price","bid_price","bid_amount"]
[1745423153496,0.40535987,92549.0,92540.0,0.35454085]
[1745423153743,0.0004246,92556.0,92546.0,0.01454085]
[1745423153968,0.0004246,92556.0,92549.0,0.34]
[1745423154181,0.0004246,92556.0,92550.0,0.01454085]
[1745423154979,0.0004246,92556.0,92555.0,0.01454085]
[1745423155550,0.0004246,92556.0,92555.0,0.67751872]
[1745423155780,0.0004246,92565.0,92555.0,0.67751872]
[1745423155781,0.0004246,92565.0,92564.0,0.57060757]
[1745423155999,0.40535987,92599.0,92583.0,0.01454085]
[1745423156212,0.002,92629.0,92599.0,0.2305259]
[1745423156213,0.25312336,92622.0,92599.0,0.2305259]
[1745423156431,0.25312336,92622.0,92599.0,0.48382085]
[1745423156881,0.25312336,92622.0,92599.0,0.34]
[1745423157130,0.08679284,92621.0,92599.0,0.46928]
[1745423157837,0.25312336,92622.0,92599.0,0.48482085]
[1745423158072,0.25312336,92622.0,92599.0,0.60013129]
[1745423158930,0.25312336,92622.0,92599.0,0.60313129]
[1745423160693,0.25312336,92622.0,92599.0,0.65283129]
[1745423160875,0.25312336,92622.0,92599.0,2.11002129]
[1745423161089,0.48535156,92600.0,92599.0,2.11102129]
[1745423161948,0.48535156,92600.0,92599.0,2.05914829]
[1745423162365,0.48535156,92600.0,92599.0,1.3610013]
[1745423162575,0.48535156,92600.0,92599.0,0.1386603]
[1745423162784,0.73847492,92600.0,92599.0,0.1456603]
[1745423163014,0.73847492,92600.0,92599.0,0.1446603]
[1745423163430,0.73847492,92600.0,92599.0,0.1506603]
[1745423163653,0.73847492,92600.0,92599.0,0.14224]
[1745423163848,0.73847492,92600.0,92599.0,0.15078085]
[1745423164273,0.73847492,92600.0,92599.0,0.15278085]
[1745423164515,0.73847492,92600.0,92599.0,0.14578085]
[1745423164723,0.48535156,92600.0,92599.0,0.59267099]
[1745423164923,0.43237763,92600.0,92599.0,0.59267099]
[1745423165350,0.43237763,92600.0,92599.0,1.31751499]
[1745423165569,0.43237763,92600.0,92599.0,1.08886999]
[1745423166233,0.43237763,92600.0,92599.0,1.07601899]
[1745423166446,0.43237763,92600.0,92599.0,1.07401899]
[1745423166682,0.43237763,92600.0,92599.0,0.80826099]
[1745423166919,0.43237763,92600.0,92599.0,0.81026099]
[1745423167126,0.43237763,92600.0,92599.0,0.47424]
[1745423167304,0.43237763,92600.0,92599.0,0.47224]
[1745423167726,0.43237763,92600.0,92599.0,0.1372]
[1745423168073,0.43237763,92600.0,92599.0,0.1342]
[1745423168291,0.43237763,92600.0,92599.0,0.1292]
[1745423168527,0.83671385,92600.0,92583.0,0.032388]
[1745423168731,0.08679284,92598.0,92571.0,0.1292]
[1745423168948,0.11067043,92597.0,92571.0,0.1292]
[1745423169154,0.10689014,92597.0,92571.0,0.1292]
[1745423169560,0.25312336,92596.0,92571.0,0.1292]
[1745423169788,0.10689014,92595.0,92571.0,0.1292]
[1745423169988,0.10689014,92595.0,92575.0,0.21603946]
[1745423170195,0.25312336,92594.0,92581.0,0.34]
[1745423171238,0.25312336,92594.0,92562.0,0.21606905]
[1745423171239,0.11066999,92593.0,92561.0,0.0008494]
[1745423171441,0.0941,92592.0,92561.0,0.0008494]
[1745423171802,0.0941,92592.0,92571.0,0.001]
[1745423171803,0.00378084,92591.0,92571.0,0.001]
[1745423172019,0.10689014,92590.0,92571.0,0.001]
[1745423172228,0.10689014,92590.0,92581.0,0.002]
[1745423172437,0.00378079,92589.0,92581.0,0.002]
[1745423172644,0.10689014,92584.0,92581.0,0.002]
[1745423173055,0.00378111,92583.0,92581.0,0.002]
[1745423173313,0.0941,92592.0,92581.0,0.002]
[1745423173314,0.10689014,92582.0,92581.0,0.002]
[1745423174160,0.10689014,92582.0,92561.0,0.0008494]
[1745423175064,0.25312336,92581.0,92561.0,0.0008494]
[1745423175277,0.10689014,92580.0,92561.0,0.0008494]
[1745423176187,0.10689014,92580.0,92561.0,0.0018494]
[1745423176625,0.10689014,92580.0,92561.0,0.0008494]
[1745423177113,0.10689014,92580.0,92561.0,0.0018494]
[1745423177742,0.10689014,92580.0,92561.0,0.0028494]
[1745423178595,0.00378111,92579.0,92561.0,0.0028494]
[1745423178818,0.15389014,92578.0,92561.0,0.0018494]
[1745423179035,0.15389014,92578.0,92561.0,0.0028494]
[1745423179480,0.10689014,92566.0,92561.0,0.0028494]
[1745423179623,0.25027396,92561.0,92537.0,0.12924]
[1745423179919,0.3571641,92560.0,92538.0,0.34]
[1745423180122,0.0499,92559.0,92538.0,0.34]
[1745423180327,0.360946,92558.0,92537.0,0.12924]
[1745423180631,0.10689014,92547.0,92531.0,0.002]
[1745423180839,0.10689014,92546.0,92531.0,0.002]
[1745423182334,0.0481,92557.0,92539.0,0.0045988]
[1745423182542,0.001,92546.0,92539.0,0.0035988]
[1745423182957,0.002,92546.0,92539.0,0.0035988]
[1745423183385,0.001,92546.0,92542.0,0.01454085]
[1745423183556,0.001,92546.0,92545.0,0.35454085]
[1745423183800,0.001,92546.0,92545.0,0.63609499]
[1745423184016,0.25027396,92558.0,92550.0,0.01454085]
[1745423184444,0.002,92557.0,92549.0,0.34]
[1745423185077,0.25027396,92558.0,92549.0,0.34]
[1745423185289,0.25027396,92558.0,92550.0,0.004]
[1745423185503,0.25027396,92558.0,92552.0,0.01454085]
[1745423185897,0.25027396,92558.0,92548.0,0.0108052]
[1745423185898,0.25027396,92558.0,92549.0,0.02534593]
[1745423186253,0.25027396,92558.0,92549.0,0.01454085]
[1745423186664,0.1828007,92558.0,92549.0,0.02734593]
[1745423186883,0.1828007,92558.0,92549.0,0.01080508]
[1745423187101,0.1828007,92558.0,92552.0,0.003]
[1745423187572,0.1828007,92558.0,92549.0,0.002]
[1745423187884,0.1828007,92558.0,92550.0,0.01454085]
[1745423188301,0.1828007,92558.0,92552.0,0.003]
[1745423188504,0.12978517,92558.0,92552.0,0.003]
[1745423188901,0.12978517,92558.0,92550.0,0.01454085]
[1745423189279,0.12978517,92558.0,92549.0,0.01454085]
[1745423189556,0.12978517,92558.0,92550.0,0.003]
[1745423190181,0.12978517,92558.0,92550.0,0.006]
[1745423191143,0.12978517,92558.0,92551.0,0.01454085]
[1745423192474,0.12978517,92558.0,92551.0,0.01754085]
[1745423192875,0.12978517,92558.0,92555.0,0.35454085]
[1745423193103,0.12978517,92586.0,92563.0,0.34]
[1745423193315,0.08679284,92574.0,92541.0,0.34]
[1745423193513,0.10689014,92573.0,92543.0,0.01080578]
[1745423193710,0.10689014,92573.0,92550.0,0.34]
[1745423194082,0.10689014,92573.0,92550.0,0.81174001]
[1745423194406,0.10689014,92573.0,92553.0,0.34]
[1745423194771,0.10689014,92573.0,92555.0,0.002]
[1745423194975,0.00378092,92572.0,92555.0,0.004]
[1745423195355,0.10689014,92569.0,92555.0,0.002]
[1745423195474,0.13356696,92568.0,92555.0,0.002]
[1745423195690,0.10689014,92567.0,92555.0,0.002]
[1745423195895,0.12978517,92566.0,92555.0,0.002]
[1745423196090,0.10689014,92565.0,92555.0,0.002]
[1745423196754,0.10689014,92565.0,92540.0,0.12888]
[1745423197090,0.10689014,92565.0,92551.0,0.003]
[1745423197409,0.12978517,92566.0,92551.0,0.34]
[1745423197644,0.12978517,92566.0,92553.0,0.34]
[1745423197816,0.002,92565.0,92553.0,0.34]
[1745423198017,0.12978517,92566.0,92553.0,0.34]
[1745423198866,0.12978517,92566.0,92551.0,0.343]
[1745423199072,0.12978517,92566.0,92552.0,0.01080473]
[1745423199275,0.12978517,92566.0,92551.0,0.34]
[1745423199699,0.12978517,92566.0,92553.0,0.003]
[1745423201050,0.12978517,92566.0,92553.0,0.006]
[1745423201249,0.12978517,92566.0,92552.0,0.01454085]
[1745423201668,0.12978517,92566.0,92553.0,0.003]
[1745423202272,0.12978517,92566.0,92553.0,0.06859947]
[1745423202537,0.0767715,92566.0,92553.0,0.06859947]
[1745423203366,0.0767715,92566.0,92553.0,0.06559947]
[1745423203679,0.0767715,92566.0,92554.0,0.01454085]
[1745423204058,0.0767715,92566.0,92553.0,0.01454085]
[1745423204636,0.0767715,92566.0,92553.0,0.02054085]
[1745423205664,0.0767715,92566.0,92553.0,0.01754085]
[1745423205901,0.11456729,92565.0,92553.0,0.003]
[1745423206114,0.0499,92564.0,92553.0,0.005]
[1745423206377,0.15489014,92563.0,92553.0,0.005]
[1745423207240,0.0767715,92562.0,92553.0,0.002]
[1745423207442,0.10689014,92561.0,92553.0,0.002]
[1745423207613,0.10689014,92561.0,92553.0,0.004]
[1745423208239,0.10689014,92561.0,92553.0,0.003]
[1745423208992,0.10689014,92561.0,92541.0,0.34]
[1745423209595,0.0767715,92562.0,92542.0,0.01454085]
[1745423210190,0.0767715,92562.0,92553.0,0.001]
[1745423210620,0.0767715,92577.0,92554.0,0.36534535]
[1745423210792,0.0767715,92577.0,92561.0,0.34]
[1745423211959,0.0767715,92577.0,92563.0,0.34]
[1745423213407,0.0767715,92577.0,92563.0,0.342]
[1745423215120,0.0767715,92577.0,92563.0,0.344]
[1745423215462,0.0767715,92577.0,92568.0,0.06559947]
[1745423216479,0.0767715,92577.0,92568.0,0.06659947]
[1745423218347,0.0767715,92577.0,92574.0,0.06559947]
[1745423219266,0.10689014,92576.0,92574.0,0.06559947]
[1745423220679,0.10889014,92576.0,92574.0,0.06559947]
[1745423220879,0.0496,92575.0,92574.0,0.06559947]
[1745423221086,0.10689014,92575.0,92574.0,0.06559947]
[1745423221723,0.18744252,92575.0,92571.0,0.06559947]
[1745423221924,0.10689014,92574.0,92571.0,0.06559947]
[1745423222346,0.0483,92573.0,92571.0,0.06559947]
[1745423222557,0.10689014,92572.0,92571.0,0.06559947]
[1745423223595,0.0787715,92575.0,92571.0,0.06559947]
[1745423223807,0.003,92572.0,92571.0,0.06559947]
[1745423224213,0.003,92572.0,92554.0,0.34]
[1745423224415,0.0767715,92571.0,92554.0,0.34]
[1745423224624,0.11067102,92570.0,92554.0,0.34]
[1745423224839,0.10689014,92570.0,92554.0,0.34]
[1745423225193,0.10689014,92570.0,92551.0,0.06559947]
[1745423225476,0.0962,92568.0,92551.0,0.06559947]
[1745423225681,0.18366164,92567.0,92551.0,0.06559947]
[1745423225878,0.0767715,92567.0,92559.0,0.06559947]
[1745423227364,0.0767715,92575.0,92560.0,0.01454085]
[1745423227566,0.0767715,92575.0,92562.0,0.34]
[1745423227902,0.0767715,92575.0,92563.0,0.02905181]
[1745423228438,0.18366164,92575.0,92560.0,0.06559947]
[1745423229005,0.0767715,92575.0,92563.0,0.34]
[1745423229208,0.0767715,92575.0,92565.0,0.34]
[1745423229410,0.0767715,92575.0,92567.0,0.08035756]
[1745423230987,0.0767715,92575.0,92567.0,0.08235756]
[1745423231184,0.0767715,92575.0,92567.0,0.002]
[1745423232058,0.0767715,92575.0,92563.0,0.08035756]
[1745423232462,0.0767715,92575.0,92567.0,0.002]
[1745423232663,0.0767715,92575.0,92567.0,0.004]
[1745423232878,0.0767715,92575.0,92571.0,0.06611826]
[1745423234182,0.0767715,92575.0,92571.0,0.06711826]
[1745423234814,0.0767715,92575.0,92572.0,0.06611826]
[1745423235263,0.0458,92573.0,92572.0,0.06611826]
[1745423235476,0.15269014,92573.0,92572.0,0.06611826]
[1745423236087,0.15269014,92573.0,92572.0,0.06711826]
[1745423236487,0.20199014,92573.0,92572.0,0.06711826]
[1745423237074,0.20199014,92573.0,92572.0,0.001]
[1745423237281,0.20499014,92573.0,92572.0,0.001]
[1745423238256,0.005,92573.0,92572.0,0.001]
[1745423239170,0.0767715,92574.0,92561.0,0.34]
[1745423239495,0.002,92573.0,92561.0,0.34]
[1745423239877,0.002,92573.0,92572.0,0.34]
[1745423240067,0.001,92573.0,92572.0,0.46852]
[1745423240263,0.0767715,92574.0,92573.0,0.34]
[1745423240711,0.23056164,92574.0,92573.0,0.34]
[1745423241898,0.23056164,92574.0,92572.0,0.001]
[1745423242226,0.10689014,92573.0,92572.0,0.001]
[1745423242419,0.10689014,92573.0,92561.0,0.341]
[1745423242585,0.10689014,92573.0,92572.0,0.001]
[1745423243167,0.10689014,92573.0,92563.0,0.06611688]
[1745423243909,0.10789014,92573.0,92563.0,0.06611688]
[1745423244207,0.10789014,92573.0,92563.0,0.06811688]
[1745423244414,0.10689014,92573.0,92563.0,0.06811688]
[1745423245583,0.0767715,92572.0,92563.0,0.06811688]
[1745423245755,0.10689014,92571.0,92563.0,0.06811688]
[1745423245969,0.0767715,92570.0,92563.0,0.06811688]
[1745423246195,0.10689014,92569.0,92563.0,0.06911688]
[1745423246401,0.00378138,92568.0,92563.0,0.06911688]
[1745423246616,0.00378138,92568.0,92563.0,0.06611688]
[1745423246617,0.10689014,92567.0,92563.0,0.06611688]
[1745423246822,0.01065462,92563.0,92561.0,0.001]
[1745423247031,0.01065462,92563.0,92551.0,0.08037462]
[1745423247032,0.0467,92561.0,92551.0,0.08037462]
[1745423247254,0.15359014,92552.0,92551.0,0.08037462]
[1745423247464,0.20179014,92552.0,92530.0,0.11189011]
[1745423247710,0.10689014,92545.0,92530.0,0.11189011]
[1745423249206,0.11289014,92545.0,92530.0,0.11189011]
[1745423250390,0.13456915,92545.0,92530.0,0.11189011]
[1745423250633,0.11289014,92545.0,92530.0,0.11189011]
[1745423250853,0.12089014,92545.0,92530.0,0.11189011]
[1745423251784,0.11489014,92545.0,92530.0,0.11189011]
[1745423251945,0.11789014,92545.0,92523.0,0.08764224]
[1745423252159,0.10689014,92540.0,92523.0,0.08764224]
[1745423252335,0.11754476,92540.0,92523.0,0.08764224]
[1745423253579,0.11754476,92540.0,92523.0,0.0008494]
[1745423254306,0.12254476,92540.0,92523.0,0.0008494]
[1745423255410,0.12654476,92540.0,92523.0,0.0008494]
[1745423257428,0.13032764,92540.0,92523.0,0.0008494]
[1745423257651,0.12654476,92540.0,92523.0,0.0008494]
[1745423259987,0.12584476,92540.0,92523.0,0.0008494]
[1745423260200,0.12584476,92540.0,92530.0,0.47214562]
[1745423260399,0.01965462,92540.0,92539.0,0.0045988]
[1745423260551,0.01965462,92540.0,92539.0,0.3445988]
[1745423260882,0.009,92540.0,92539.0,1.15300579]
[1745423261194,0.004,92540.0,92539.0,0.86311265]
[1745423261397,0.004,92540.0,92539.0,0.40803965]
[1745423261599,0.003,92540.0,92539.0,0.40803965]
[1745423261753,0.003,92540.0,92539.0,0.06803965]
[1745423262141,0.003,92540.0,92539.0,0.0035988]
[1745423262345,0.003,92540.0,92539.0,0.02113965]
[1745423262804,0.003,92540.0,92539.0,0.01913965]
[1745423262963,0.003,92540.0,92539.0,0.02213965]
[1745423263411,0.01065462,92569.0,92540.0,0.01454085]
[1745423263616,0.11754476,92568.0,92551.0,0.34]
[1745423264220,0.11754476,92568.0,92552.0,0.02534558]
[1745423264427,0.11754476,92568.0,92552.0,0.01454085]
[1745423264641,0.01065462,92568.0,92555.0,0.06314085]
[1745423264810,0.01065462,92568.0,92558.0,0.01454085]
[1745423265016,0.01065462,92568.0,92560.0,0.34]
[1745423265653,0.01065462,92568.0,92561.0,0.01454085]
[1745423266262,0.01065462,92588.0,92561.0,0.01454085]
[1745423266441,0.01065462,92588.0,92579.0,0.34]
[1745423266819,0.01065462,92588.0,92580.0,0.01454085]
[1745423266994,0.01065462,92599.0,92586.0,0.02534161]
[1745423267196,0.01065462,92599.0,92588.0,0.35454085]
[1745423267398,0.0008496,92605.0,92588.0,0.46143099]
[1745423267614,0.0008496,92605.0,92588.0,1.22083299]
[1745423267819,0.0008496,92605.0,92588.0,1.08933799]
[1745423268689,0.0008496,92605.0,92588.0,0.79825099]
[1745423269130,0.0008496,92605.0,92588.0,0.80225099]
[1745423269952,0.0008496,92605.0,92588.0,0.80525099]
[1745423270763,0.0008496,92605.0,92588.0,0.80225099]
[1745423270972,0.0008496,92605.0,92588.0,0.80725099]
[1745423271657,0.0008496,92605.0,92588.0,0.36354085]
[1745423271882,0.0008496,92605.0,92588.0,0.62708285]
[1745423272106,0.0008496,92605.0,92588.0,0.73397299]
[1745423273000,0.0008496,92605.0,92588.0,0.58562299]
[1745423273198,0.0008496,92605.0,92588.0,0.67640699]
[1745423273861,0.0008496,92605.0,92588.0,0.64092799]
[1745423274435,0.0008496,92605.0,92588.0,0.92885799]
[1745423279740,0.0008496,92605.0,92588.0,0.79419099]
[1745423279964,0.0008496,92605.0,92588.0,1.38732499]
[1745423281046,0.0008496,92605.0,92588.0,1.265894]
[1745423281260,0.0008496,92605.0,92588.0,0.8004]
[1745423281940,0.01065462,92599.0,92588.0,0.4604]
[1745423282223,0.00377988,92599.0,92588.0,0.33276]
[1745423282448,0.10689014,92598.0,92588.0,0.4604]
[1745423282909,0.4004724,92600.0,92588.0,0.4604]
[1745423283141,0.50736254,92600.0,92588.0,0.4604]
[1745423283595,0.4004724,92600.0,92591.0,0.01454085]
[1745423283800,0.4004724,92600.0,92591.0,0.35454085]
[1745423284955,0.4004724,92600.0,92591.0,0.01954085]
[1745423286332,0.4004724,92600.0,92591.0,0.005]
[1745423286589,0.4004724,92600.0,92588.0,0.4514]
[1745423287477,0.10689014,92599.0,92588.0,0.4514]
[1745423287701,0.0471,92597.0,92588.0,0.12764]
[1745423287930,0.10689014,92596.0,92591.0,0.003]
[1745423288408,0.10789014,92596.0,92586.0,0.05029152]
[1745423290073,0.10989014,92596.0,92586.0,0.05029152]
[1745423290234,0.10989014,92596.0,92575.0,0.01454085]
[1745423290430,0.00378002,92595.0,92574.0,0.05029152]
[1745423290657,0.10689014,92594.0,92574.0,0.05029152]
[1745423291682,0.003,92596.0,92574.0,0.05029152]
[1745423291683,0.003,92596.0,92575.0,0.01454085]
[1745423291883,0.10789014,92596.0,92575.0,0.01454085]
[1745423292200,0.51889014,92595.0,92570.0,0.47214562]
[1745423292555,0.412,92595.0,92575.0,0.01080205]
[1745423292798,0.412,92595.0,92572.0,0.21604773]
[1745423293011,0.412,92595.0,92578.0,0.0108017]
[1745423293213,0.412,92595.0,92585.0,0.2160169]
[1745423293434,0.412,92595.0,92580.0,0.47214562]
[1745423293435,0.412,92595.0,92584.0,0.01454085]
[1745423293745,0.001,92596.0,92595.0,0.35454085]
[1745423294091,0.001,92596.0,92595.0,1.43778399]
[1745423294534,0.001,92596.0,92595.0,0.58907099]
[1745423294719,0.001,92596.0,92595.0,1.77268399]
[1745423294910,0.001,92596.0,92595.0,0.58907099]
[1745423295145,0.001,92596.0,92595.0,1.77488899]
[1745423297299,0.001,92596.0,92595.0,1.58060499]
[1745423297551,0.001,92596.0,92595.0,0.85082585]
[1745423297786,0.001,92596.0,92595.0,0.48718085]
[1745423300128,0.0479,92596.0,92595.0,0.005]
[1745423300331,0.62503666,92596.0,92595.0,0.005]
[1745423300711,0.62503666,92596.0,92580.0,0.001]
[1745423300712,0.407,92593.0,92580.0,0.001]
[1745423300933,0.08679284,92589.0,92580.0,0.001]
[1745423301138,0.1106711,92588.0,92580.0,0.001]
[1745423301432,0.10689014,92583.0,92580.0,0.001]
[1745423304079,0.407,92582.0,92560.0,0.47214562]
[1745423304269,0.10689014,92581.0,92560.0,0.47214562]
[1745423304596,0.407,92582.0,92559.0,0.12764]
[1745423304597,0.407,92582.0,92580.0,0.001]
[1745423305416,0.407,92582.0,92579.0,0.01080158]
[1745423305623,0.407,92582.0,92577.0,0.01080181]
[1745423306007,0.407,92582.0,92576.0,0.34]
[1745423306413,0.05238052,92581.0,92561.0,0.01454085]
[1745423306634,0.05238052,92581.0,92562.0,0.02895794]
[1745423307039,0.10689014,92580.0,92562.0,0.02895794]
[1745423307215,0.00378085,92579.0,92561.0,0.02895794]
[1745423307415,0.10689014,92578.0,92561.0,0.02895794]
[1745423308172,0.10689014,92578.0,92560.0,0.34]
[1745423308377,0.10689014,92578.0,92561.0,0.02895545]
[1745423308569,0.0486,92581.0,92560.0,0.81214562]
[1745423308777,0.15549014,92581.0,92560.0,0.81214562]
[1745423308998,0.15549014,92581.0,92561.0,0.02995978]
[1745423309198,0.15549014,92581.0,92562.0,0.02895978]
[1745423309449,0.15549014,92581.0,92561.0,0.002]
[1745423309629,0.0486,92581.0,92567.0,0.01080298]
[1745423309830,0.407,92582.0,92572.0,0.01454085]
[1745423310270,0.407,92582.0,92562.0,0.02534441]
[1745423310434,0.4478,92582.0,92563.0,0.34]
[1745423310589,0.407,92582.0,92563.0,0.34]
[1745423310794,0.408,92582.0,92563.0,0.34]
[1745423311226,0.408,92582.0,92572.0,0.003]
[1745423312175,0.408,92582.0,92565.0,0.34]
[1745423312552,0.24596382,92581.0,92565.0,0.34]
[1745423312760,0.06539638,92580.0,92563.0,0.002]
[1745423312975,0.10689014,92579.0,92563.0,0.002]
[1745423313392,0.41078094,92578.0,92563.0,0.002]
[1745423313550,0.08679284,92569.0,92563.0,0.002]
[1745423313774,0.10689014,92566.0,92539.0,0.0034482]
[1745423314000,0.00378209,92565.0,92539.0,0.0034482]
[1745423314212,0.10689014,92564.0,92539.0,0.0034482]
[1745423314912,0.10689014,92564.0,92539.0,0.0084482]
[1745423315110,0.00378204,92563.0,92539.0,0.0084482]
[1745423315312,0.10689014,92557.0,92539.0,0.0084482]
[1745423315515,0.10689014,92545.0,92539.0,0.0034482]
[1745423315713,0.10689014,92542.0,92539.0,0.0034482]
[1745423316851,0.407,92544.0,92539.0,0.0034482]
[1745423317483,0.407,92544.0,92540.0,0.02889079]
[1745423317681,0.407,92544.0,92541.0,0.12728]
[1745423317886,0.407,92544.0,92541.0,0.46728]
[1745423317887,0.003,92542.0,92541.0,0.46728]
[1745423318181,0.407,92560.0,92546.0,0.34]
[1745423318397,0.407,92560.0,92551.0,0.34]
[1745423319345,0.14759014,92559.0,92542.0,0.34]
[1745423319726,0.10689014,92559.0,92542.0,0.34]
[1745423320370,0.00378184,92558.0,92542.0,0.34]
[1745423320576,0.10689014,92559.0,92551.0,0.002]
[1745423320577,0.10689014,92557.0,92551.0,0.002]
[1745423321180,0.10689014,92557.0,92551.0,0.004]
[1745423321397,0.10689014,92557.0,92551.0,0.002]
[1745423321723,0.407,92556.0,92542.0,0.342]
[1745423321921,0.10689014,92555.0,92542.0,0.34]
[1745423322293,0.10689014,92555.0,92551.0,0.001]
[1745423322706,0.05517092,92554.0,92551.0,0.001]
[1745423322909,0.10689014,92553.0,92551.0,0.001]
[1745423323068,0.00378225,92552.0,92551.0,0.001]
[1745423323272,0.11067239,92552.0,92551.0,0.001]
[1745423324024,0.11067239,92552.0,92542.0,0.003]
[1745423324183,0.10689014,92551.0,92542.0,0.005]
[1745423324395,0.00378241,92550.0,92542.0,0.005]
[1745423324586,0.10689014,92549.0,92542.0,0.002]
[1745423325192,0.00378242,92548.0,92539.0,0.0034482]
[1745423325387,0.10689014,92547.0,92539.0,0.0034482]
[1745423325838,0.00378243,92546.0,92539.0,0.0034482]
[1745423325993,0.10689014,92545.0,92539.0,0.0034482]
[1745423327417,0.407,92544.0,92539.0,0.0034482]
[1745423328722,0.409,92544.0,92539.0,0.0034482]
[1745423329270,0.411,92544.0,92539.0,0.0034482]
[1745423329704,0.409,92544.0,92539.0,0.0034482]
[1745423330310,0.001,92554.0,92540.0,0.01080613]
[1745423330501,0.001,92554.0,92539.0,0.0034482]
[1745423330706,0.001,92554.0,92541.0,0.34]
[1745423330984,0.10689014,92553.0,92541.0,0.34]
[1745423331185,0.001,92554.0,92541.0,0.34]
[1745423331644,0.001,92554.0,92539.0,0.0064482]
[1745423331844,0.001,92554.0,92541.0,0.34]
[1745423332212,0.001,92554.0,92541.0,0.341]
[1745423333414,0.001,92554.0,92541.0,0.199449]
[1745423333647,0.001,92554.0,92541.0,0.198449]
[1745423334470,0.001,92554.0,92541.0,0.199449]
[1745423335281,0.001,92554.0,92542.0,0.01454085]
[1745423336263,0.001,92554.0,92541.0,0.200449]
[1745423336264,0.001,92554.0,92541.0,0.199449]
[1745423336466,0.001,92554.0,92542.0,0.001]
[1745423336671,0.10689014,92553.0,92542.0,0.001]
[1745423337012,0.11767915,92553.0,92542.0,0.002]
[1745423337217,0.08679284,92551.0,92542.0,0.002]
[1745423337426,0.11067248,92550.0,92542.0,0.002]
[1745423337624,0.51767248,92550.0,92542.0,0.002]
[1745423337752,0.51389014,92549.0,92542.0,0.001]
[1745423337962,0.10689014,92543.0,92542.0,0.001]
[1745423338328,0.16027316,92543.0,92542.0,0.001]
[1745423338812,0.16027316,92543.0,92539.0,0.0034482]
[1745423339009,0.10689014,92540.0,92539.0,0.0034482]
[1745423339290,0.11067322,92540.0,92539.0,0.0034482]
[1745423339491,0.10689014,92540.0,92539.0,0.0034482]
[1745423340175,0.11289014,92540.0,92539.0,0.0034482]
[1745423340600,0.11989014,92540.0,92539.0,0.0044482]
[1745423341963,0.013,92540.0,92539.0,0.0044482]
[1745423342949,0.007,92540.0,92539.0,0.0044482]
[1745423343149,0.407,92549.0,92539.0,0.0034482]
[1745423343374,0.004,92540.0,92539.0,0.81559382]
[1745423343608,0.009,92540.0,92539.0,0.3434482]
[1745423343813,0.01,92540.0,92539.0,0.57511414]
[1745423344019,0.01,92540.0,92539.0,0.68200428]
[1745423344250,0.407,92573.0,92551.0,0.01080485]
[1745423344451,0.407,92573.0,92553.0,0.57063325]
[1745423344630,0.407,92573.0,92553.0,1.85605939]
[1745423344828,0.407,92597.0,92578.0,0.01454085]
[1745423345024,0.407,92597.0,92581.0,0.34]
[1745423345226,0.0500496,92605.0,92581.0,0.34]
[1745423345227,0.0008496,92605.0,92585.0,0.02534173]
[1745423345425,0.0008496,92605.0,92585.0,0.01454085]
[1745423345867,0.09057258,92599.0,92584.0,0.34]
[1745423346198,0.09057258,92599.0,92564.0,0.01080333]
[1745423346199,0.08679284,92599.0,92586.0,0.34]
[1745423346393,0.08679284,92599.0,92587.0,0.12692]
[1745423346602,0.0008496,92605.0,92589.0,0.34]
[1745423347056,0.08679284,92599.0,92589.0,0.34]
[1745423347579,0.08679284,92599.0,92588.0,0.34]
[1745423348026,0.0008496,92605.0,92588.0,0.34]
[1745423348650,0.0008496,92605.0,92581.0,0.34]
[1745423348849,0.65436347,92589.0,92553.0,0.12788]
[1745423349017,0.11287883,92588.0,92553.0,0.12788]
[1745423349220,0.10689014,92587.0,92571.0,0.34]
[1745423349647,0.10689014,92587.0,92570.0,0.47214562]
[1745423349979,0.407,92589.0,92571.0,0.34]
[1745423350263,0.01,92590.0,92580.0,0.34]
[1745423351228,0.01,92590.0,92579.0,0.34]
[1745423351434,0.01,92590.0,92581.0,0.34]
[1745423351641,0.01,92590.0,92586.0,0.01080076]
[1745423351873,0.01,92590.0,92588.0,0.34]
[1745423352078,0.01,92590.0,92589.0,0.64282185]
[1745423352278,0.01,92590.0,92589.0,0.76970185]
[1745423352643,0.01,92590.0,92589.0,0.48142085]
[1745423353037,0.01,92590.0,92589.0,0.92824285]
[1745423353245,0.01,92590.0,92589.0,0.48142085]
[1745423353451,0.011,92590.0,92589.0,0.48142085]
[1745423353635,0.011,92590.0,92589.0,0.67371585]
[1745423353852,0.01,92590.0,92589.0,0.78060599]
[1745423354062,0.0008496,92605.0,92591.0,0.01454085]
[1745423354263,0.0008496,92605.0,92591.0,3.25661799]
[1745423354638,0.0008496,92605.0,92591.0,1.81203999]
[1745423355049,0.0008496,92605.0,92591.0,1.63242099]
[1745423355252,0.0008496,92605.0,92591.0,1.25816799]
[1745423355416,0.0008496,92605.0,92591.0,1.15480999]
[1745423356110,0.0008496,92605.0,92591.0,1.15680999]
[1745423356288,0.0008496,92605.0,92591.0,0.8314837]
[1745423356665,0.0008496,92605.0,92591.0,0.73759356]
[1745423356930,0.0008496,92605.0,92591.0,0.353]
[1745423357302,0.0008496,92605.0,92591.0,0.55600371]
[1745423357454,0.0008496,92605.0,92591.0,0.8703887]
[1745423357663,0.0008496,92605.0,92591.0,0.55349485]
[1745423357869,0.0008496,92605.0,92591.0,0.48801385]
[1745423358065,0.0008496,92605.0,92591.0,0.46111385]
[1745423358298,0.0008496,92605.0,92591.0,0.443573]
[1745423358503,0.0008496,92605.0,92591.0,0.003]
[1745423358685,0.0008496,92605.0,92591.0,0.12984]
[1745423358884,0.0008496,92605.0,92591.0,0.12684]
[1745423359686,0.0008496,92605.0,92591.0,0.12884]
[1745423360062,0.0008496,92605.0,92591.0,0.13184]
[1745423360395,0.0008496,92605.0,92591.0,0.12884]
[1745423360796,0.0008496,92605.0,92591.0,0.13084]
[1745423362315,0.0008496,92605.0,92591.0,1.071505]
[1745423362456,0.0008496,92605.0,92591.0,0.64211]
[1745423362860,0.0008496,92605.0,92591.0,0.76354099]
[1745423363514,0.0008496,92605.0,92591.0,0.65665085]
[1745423365434,0.0008496,92605.0,92591.0,0.62771]